bitfinex/quotes_SOLUSD_20240621
["timestamp","ask_amount","ask_price","bid_price","bid_amount"]
[1718979340989,6.4385,131.67,131.57,21.2801]
[1718979340990,6.0776,131.63,131.57,21.2801]
[1718979341309,6.4385,131.67,131.57,15.2001]
[1718979341483,12.5144,131.67,131.6,6.0786]
[1718979341687,6.4385,131.67,131.61,6.0781]
[1718979342108,12.5144,131.67,131.61,6.0781]
[1718979342303,6.4385,131.67,131.62,6.0779]
[1718979342613,6.4385,131.67,131.56,21.2805]
[1718979342795,6.0776,131.63,131.52,15.2061]
[1718979342996,6.0776,131.63,131.56,6.0807]
[1718979343198,15.192,131.65,131.5,106.2394]
[1718979343430,45.17,131.66,131.5,21.4474]
[1718979343714,6.0779,131.63,131.56,6.0805]
[1718979343884,6.0782,131.62,131.52,15.2067]
[1718979344091,60.361,131.66,131.55,6.0809]
[1718979344290,6.0782,131.62,131.56,6.0808]
[1718979344606,15.193,131.64,131.52,15.2067]
[1718979344914,6.4385,131.67,131.52,100.0]
[1718979345087,6.4385,131.67,131.51,15.363]
[1718979345088,6.4385,131.67,131.56,6.0807]
[1718979345284,6.0787,131.61,131.54,6.0814]
[1718979345488,6.0787,131.61,131.51,15.193]
[1718979345489,21.7809,131.63,131.5,15.208]
[1718979345689,21.7809,131.63,131.52,15.2064]
[1718979345922,21.7809,131.63,131.58,6.0799]
[1718979346085,6.006,131.63,131.58,6.0795]
[1718979346297,6.006,131.63,131.59,6.0792]
[1718979346500,6.006,131.63,131.58,6.0798]
[1718979346697,12.4133,131.66,131.56,15.202]
[1718979346900,6.0767,131.65,131.59,6.0793]
[1718979347110,12.4135,131.66,131.6,6.0788]
[1718979347298,6.3371,131.66,131.56,15.202]
[1718979347498,6.3371,131.66,131.58,15.1997]
[1718979347917,6.3371,131.66,131.54,6.0053]
[1718979348125,6.0772,131.64,131.58,6.0796]
[1718979348299,6.3371,131.66,131.54,21.7802]
[1718979348495,6.3371,131.66,131.56,15.2011]
[1718979348695,6.3371,131.66,131.61,6.0785]
[1718979348895,6.9224856,131.69,131.63,6.0775]
[1718979349204,0.8475856,131.69,131.64,6.0768]
[1718979349525,0.8475856,131.69,131.67,6.0754]
[1718979349696,0.8475856,131.69,131.68,6.0753]
[1718979351306,0.8475856,131.69,131.64,15.1918]
[1718979351519,0.8475856,131.69,131.68,6.0753]
[1718979351817,8.56e-05,131.69,131.68,21.4336]
[1718979352226,0.8475856,131.82,131.7,100.0]
[1718979352396,0.8475856,131.82,131.71,20.17]
[1718979352602,0.8475856,131.82,131.77,6.0707]
[1718979352795,0.8475856,131.82,131.75,6.0717]
[1718979353003,0.8475856,131.82,131.76,6.0713]
[1718979353219,0.8475856,131.82,131.72,0.17]
[1718979353220,0.8475856,131.82,131.8,6.0696]
[1718979353422,0.8475856,131.82,131.71,0.17]
[1718979353632,6.0701,131.8,131.74,6.0725]
[1718979353839,0.8475856,131.82,131.75,6.0717]
[1718979354124,0.8475856,131.82,131.71,15.1846]
[1718979354299,0.8475856,131.82,131.68,21.41]
[1718979354300,16.0202856,131.82,131.72,6.0733]
[1718979354495,16.0202856,131.82,131.71,6.0739]
[1718979354496,6.0712,131.77,131.71,6.0739]
[1718979354702,0.8475856,131.82,131.64,106.2421]
[1718979355013,0.8475856,131.82,131.7,6.0743]
[1718979355014,6.0716,131.76,131.7,6.0743]
[1718979355205,15.176,131.79,131.66,15.1905]
[1718979355432,15.1781,131.77,131.67,6.0756]
[1718979355644,6.0727,131.74,131.65,35.1916]
[1718979355933,6.0726,131.74,131.68,6.0752]
[1718979356135,60.1768,131.78,131.68,6.0752]
[1718979356330,60.1768,131.78,131.68,6.075]
[1718979356547,0.8475856,131.82,131.78,6.0705]
[1718979356711,0.8475856,131.82,131.7,100.0]
[1718979356712,0.8475856,131.82,131.74,100.0]
[1718979357243,0.8475856,131.82,131.79,6.0701]
[1718979357407,0.8475856,131.82,131.77,15.1773]
[1718979357716,0.8475856,131.82,131.81,6.0693]
[1718979358474,0.8475856,131.82,131.76,6.0714]
[1718979358741,0.8475856,131.82,131.71,122.3484]
[1718979358742,0.8475856,131.82,131.71,16.1063]
[1718979358912,0.8475856,131.82,131.77,6.071]
[1718979359114,0.8475856,131.82,131.75,15.18]
[1718979359512,0.8475856,131.82,131.77,6.071]
[1718979359711,0.8475856,131.82,131.78,6.0705]
[1718979359915,0.8475856,131.82,131.81,6.0693]
[1718979360338,0.8475856,131.82,131.81,21.4126]
[1718979360639,0.8475856,131.82,131.8,6.0696]
[1718979360948,0.8475856,131.82,131.77,16.3241]
[1718979361241,0.8475856,131.82,131.81,6.0693]
[1718979361546,0.8475856,131.82,131.81,121.4126]
[1718979362147,0.8475856,131.82,131.81,6.0693]
[1718979363057,31.1637856,131.95,131.81,6.0693]
[1718979363058,0.8475856,131.95,131.82,100.0]
[1718979363223,0.8475856,131.95,131.92,6.0641]
[1718979363760,0.8475856,131.95,131.91,6.0645]
[1718979363915,0.8475856,131.95,131.82,100.0]
[1718979364113,0.8475856,131.95,131.84,100.0]
[1718979364316,7.92571354,132.03,131.94,6.063]
[1718979364563,7.92571354,132.03,131.86,100.0]
[1718979364564,0.6603498,131.96,131.86,100.0]
[1718979364849,0.6603498,131.96,131.92,5.3851]
[1718979365023,6.7227498,131.96,131.9,6.0651]
[1718979365221,6.7227498,131.96,131.87,120.0]
[1718979365222,6.7231498,131.96,131.87,120.0]
[1718979365527,0.6603498,131.96,131.91,6.0647]
[1718979365722,0.6603498,131.96,131.89,115.1641]
[1718979365929,0.6603498,131.96,131.91,15.1617]
[1718979366122,0.6603498,131.96,131.91,131.0979]
[1718979366349,0.6603498,131.96,131.93,6.0634]
[1718979366543,0.6603498,131.96,131.9,0.17]
[1718979366544,1.036597,132.12,131.95,100.0]
[1718979366743,7.92143856,132.07,131.93,115.1586]
[1718979367044,6.06,132.02,131.92,15.1605]
[1718979367252,6.0593,132.03,131.91,100.34]
[1718979367458,6.0593,132.03,131.97,6.0618]
[1718979367655,15.1435,132.07,131.94,15.1576]
[1718979367824,6.0595,132.03,131.97,6.0618]
[1718979368129,6.0593,132.03,131.96,6.062]
[1718979368329,6.0606,132.0,131.94,6.0632]
[1718979368537,15.1515,132.0,131.88,15.1642]
[1718979368736,6.0629,131.95,131.89,6.0652]
[1718979368930,30.2914,132.06,131.87,100.0]
[1718979369134,6.0611,131.99,131.92,6.0641]
[1718979369353,30.2914,132.06,131.87,100.0]
[1718979369529,30.2914,132.06,131.85,30.3356]
[1718979369530,15.1529,131.99,131.85,30.3356]
[1718979369737,6.0617,131.98,131.91,6.0644]
[1718979369928,6.0617,131.98,131.91,6.0646]
[1718979370124,6.0621,131.97,131.91,6.0646]
[1718979370328,30.2845,132.09,131.91,100.0]
[1718979370646,1.036597,132.12,131.99,15.1518]
[1718979370968,6.0572,132.08,132.02,6.0592]
[1718979371249,1.036597,132.12,131.94,115.8984]
[1718979371451,16.174597,132.12,132.01,6.06]
[1718979371655,6.0572,132.08,132.02,6.0596]
[1718979371864,16.174597,132.12,131.97,100.0]
[1718979371865,6.0578,132.06,131.97,100.0]
[1718979372149,6.0575,132.07,132.01,6.0601]
[1718979372338,15.1408,132.1,132.0,6.0604]
[1718979372538,6.0584,132.05,131.99,6.0609]
[1718979372738,6.059,132.04,131.97,6.0616]
[1718979373054,6.0608,132.0,131.91,15.1609]
[1718979373239,6.061,131.99,131.93,6.0636]
[1718979373427,6.061,131.99,131.93,6.0637]
[1718979373428,6.0611,131.99,131.93,6.0637]
[1718979373627,6.0611,131.99,131.88,6.4546]
[1718979373628,15.1492,132.02,131.88,15.1643]
[1718979373825,15.1515,132.0,131.88,15.1643]
[1718979374327,6.0624,131.96,131.9,6.0648]
[1718979375052,0.17,132.01,131.85,15.1676]
[1718979375255,65.34,132.01,131.83,100.0]
[1718979375437,15.1571,131.96,131.82,15.171]
[1718979375637,15.1586,131.94,131.82,15.171]
[1718979375844,10.0,132.0,131.81,16.4367]
[1718979376149,6.0649,131.91,131.85,6.0671]
[1718979376330,65.17,131.99,131.81,15.1723]
[1718979376331,15.1596,131.93,131.81,15.1723]
[1718979376527,0.17,131.99,131.83,15.171]
[1718979376749,6.0654,131.9,131.84,6.0678]
[1718979376947,15.1594,131.94,131.8,100.0]
[1718979377164,30.3112,131.97,131.8,100.0]
[1718979377371,30.3112,131.97,131.78,30.3522]
[1718979377372,65.34,131.96,131.82,15.1721]
[1718979377588,65.34,131.96,131.85,6.0672]
[1718979377589,6.065,131.91,131.85,6.0672]
[1718979377758,10.0,132.0,131.81,100.0]
[1718979377966,15.1609,131.92,131.81,15.1732]
[1718979378265,6.064,131.93,131.87,6.0665]
[1718979378462,6.0648,131.91,131.85,6.0673]
[1718979378657,6.065,131.91,131.85,6.0672]
[1718979378861,20.0,131.99,131.8,15.1733]
[1718979379072,6.0668,131.87,131.81,6.0692]
[1718979379260,6.0664,131.88,131.82,6.0687]
[1718979379781,20.0,131.99,131.83,100.0]
[1718979380082,30.3111,131.97,131.77,116.3241]
[1718979380375,15.1621,131.91,131.82,6.0688]
[1718979380577,15.1585,131.94,131.81,100.0]
[1718979380752,15.1585,131.94,131.84,6.0678]
[1718979381086,6.0656,131.9,131.84,6.0677]
[1718979381291,30.3042,132.0,131.84,6.0677]
[1718979381292,6.0637,131.94,131.88,6.066]
[1718979381584,6.0637,131.94,131.89,6.0653]
[1718979381585,6.0634,131.94,131.89,6.0653]
[1718979381793,7.92698881,132.0,131.84,122.91]
[1718979381954,15.1539,131.98,131.88,6.0658]
[1718979382149,6.0634,131.94,131.88,6.0658]
[1718979382775,6.0638,131.93,131.87,6.0665]
[1718979382976,6.0638,131.93,131.85,15.1687]
[1718979382977,30.3104,131.97,131.81,15.1724]
[1718979383277,15.1606,131.93,131.81,15.1724]
[1718979383646,6.0649,131.91,131.85,6.0674]
[1718979383852,15.157,131.96,131.83,15.1707]
[1718979384083,6.0643,131.92,131.86,6.0668]
[1718979384264,15.157,131.96,131.87,6.0665]
[1718979384460,15.157,131.96,131.83,15.1707]
[1718979384461,6.0647,131.91,131.83,15.1707]
[1718979384866,6.0658,131.89,131.83,6.0682]
[1718979385203,6.0663,131.88,131.82,6.0687]
[1718979385481,6.0675,131.85,131.78,20.0]
[1718979385776,15.1646,131.89,131.77,116.3241]
[1718979385777,6.0672,131.86,131.8,6.0693]
[1718979386007,15.1646,131.89,131.77,16.3241]
[1718979386280,35.1663,131.88,131.77,16.3241]
[1718979386458,15.168,131.86,131.77,22.3949]
[1718979386781,6.0681,131.84,131.78,6.0706]
[1718979386956,6.0685,131.83,131.77,6.0709]
[1718979387154,6.069,131.82,131.76,6.0715]
[1718979387379,6.0693,131.81,131.76,6.0715]
[1718979387562,15.168,131.86,131.74,35.1804]
[1718979387764,46.3542,131.91,131.76,100.0]
[1718979387765,36.3542,131.91,131.76,100.0]
[1718979387955,15.1657,131.88,131.79,6.07]
[1718979388152,0.17,131.89,131.75,15.1792]
[1718979388376,6.069,131.82,131.76,6.0712]
[1718979388583,6.0685,131.83,131.77,6.0711]
[1718979388883,15.1654,131.88,131.75,15.1801]
[1718979389056,6.0678,131.85,131.79,6.0698]
[1718979389262,6.0687,131.83,131.77,6.0708]
[1718979389461,15.1697,131.85,131.76,6.0715]
[1718979389680,6.0694,131.81,131.75,6.0717]
[1718979389889,6.0695,131.81,131.75,6.072]
[1718979390192,6.069,131.82,131.74,20.0]
[1718979390371,6.0693,131.81,131.76,6.0714]
[1718979390777,6.0693,131.81,131.74,20.0]
[1718979390967,6.0693,131.81,131.75,0.53752157]
[1718979391167,6.07,131.8,131.75,0.53752157]
[1718979391369,0.17,131.87,131.77,6.0708]
[1718979391563,6.029,131.91,131.77,100.0]
[1718979391801,6.0662,131.88,131.8,15.1744]
[1718979392089,30.3284,131.89,131.78,6.0703]
[1718979392298,30.3284,131.89,131.76,15.1714]
[1718979392595,15.1666,131.87,131.76,15.1714]
[1718979393292,6.0681,131.84,131.79,6.0702]
[1718979393491,15.1666,131.87,131.78,6.0705]
[1718979393690,6.0687,131.83,131.78,6.0706]
[1718979393991,6.0681,131.84,131.78,6.0706]
[1718979394172,0.17,131.88,131.72,11.09163796]
[1718979394373,6.069,131.82,131.76,6.0713]
[1718979394575,6.069,131.82,131.73,15.1816]
[1718979394994,65.34,131.88,131.74,100.0]
[1718979395179,6.029,131.91,131.72,30.3284]
[1718979395180,6.0667,131.87,131.82,6.0687]
[1718979395392,6.0659,131.89,131.83,6.0681]
[1718979395586,6.029,131.91,131.82,6.0687]
[1718979395898,6.029,131.91,131.76,11.10291998]
[1718979396096,6.0675,131.85,131.79,6.0699]
[1718979396303,15.1662,131.88,131.76,26.28101998]
[1718979396513,6.0673,131.86,131.8,6.0697]
[1718979396684,6.0667,131.87,131.81,6.0692]
[1718979396884,15.1653,131.88,131.76,11.10511524]
[1718979397082,0.17,131.89,131.79,6.0702]
[1718979397300,6.0669,131.87,131.8,6.0693]
[1718979397504,6.0669,131.87,131.81,6.069]
[1718979397702,20.0,131.9,131.79,15.1747]
[1718979398002,6.0668,131.87,131.81,6.069]
[1718979398208,20.0,131.9,131.83,6.0683]
[1718979398398,6.0658,131.89,131.84,6.0679]
[1718979398778,20.0,131.9,131.82,6.0687]
[1718979399075,6.0669,131.87,131.81,6.0691]
[1718979399275,21.1913,131.91,131.77,100.0]
[1718979399586,6.066,131.89,131.83,6.068]
[1718979399895,21.1913,131.91,131.8,15.1741]
[1718979400076,6.2487,131.94,131.81,15.999]
[1718979400281,6.0639,131.93,131.85,15.1685]
[1718979400477,12.3121,131.94,131.85,15.1685]
[1718979400684,6.0639,131.93,131.87,6.0662]
[1718979400884,6.065,131.91,131.85,6.0674]
[1718979401209,6.2487,131.94,131.83,15.1709]
[1718979401375,6.2487,131.94,131.85,15.1686]
[1718979401582,6.2487,131.94,131.82,100.0]
[1718979401805,6.2487,131.94,131.83,15.171]
[1718979402108,6.0649,131.91,131.85,6.0673]
[1718979402286,6.2487,131.94,131.87,6.0663]
[1718979402481,6.0645,131.92,131.86,6.0668]
[1718979402815,6.2487,131.94,131.87,6.0664]
[1718979402986,6.2487,131.94,131.83,15.171]
[1718979403188,6.0639,131.93,131.87,6.0662]
[1718979403488,6.2487,131.94,131.87,6.0662]
[1718979403690,6.2487,131.94,131.89,6.0656]
[1718979403884,6.2487,131.94,131.84,153.2489]
[1718979404088,21.2556,131.98,131.87,15.166]
[1718979404303,6.0627,131.96,131.9,6.065]
[1718979404478,20.0,131.97,131.86,100.0]
[1718979404479,6.1008,131.98,131.92,6.0641]
[1718979404680,6.1008,131.98,131.94,6.0632]
[1718979405085,6.0611,131.99,131.94,6.0632]
[1718979405285,6.0618,131.98,131.9,15.1618]
[1718979405493,6.0612,131.99,131.93,6.0635]
[1718979405690,6.036,132.02,131.94,6.0633]
[1718979406017,6.0611,131.99,131.93,6.0636]
[1718979406302,6.0633,131.94,131.85,26.7483]
[1718979406511,30.0,132.01,131.87,6.0662]
[1718979406687,6.0647,131.91,131.86,6.0669]
[1718979406888,6.0646,131.92,131.87,6.0663]
[1718979407099,6.0646,131.92,131.86,6.0669]
[1718979407487,15.1574,131.95,131.86,6.0669]
[1718979407488,6.0647,131.91,131.86,6.0669]
[1718979407689,15.1596,131.93,131.85,6.0674]
[1718979407904,6.0655,131.9,131.84,6.0678]
[1718979408206,6.0658,131.89,131.84,6.0677]
[1718979408411,6.0661,131.88,131.78,100.0]
[1718979408589,6.0658,131.89,131.8,100.0]
[1718979408790,6.0558,131.92,131.86,6.0668]
[1718979409001,12.1204,131.92,131.86,6.0668]
[1718979409725,6.0648,131.91,131.85,6.0673]
[1718979410012,6.0666,131.87,131.82,6.0688]
[1718979410186,6.0663,131.88,131.82,6.0688]
[1718979410381,6.0666,131.87,131.78,115.1767]
[1718979410583,15.1647,131.89,131.78,115.1767]
[1718979410883,15.162,131.91,131.79,15.1745]
[1718979411082,6.0657,131.89,131.83,6.0681]
[1718979411283,6.0659,131.89,131.83,6.0679]
[1718979411581,6.0654,131.9,131.84,6.0679]
[1718979411778,6.0668,131.87,131.82,6.0688]
[1718979412137,6.0677,131.85,131.8,6.0696]
[1718979412408,15.165,131.89,131.77,15.1778]
[1718979412591,6.0558,131.92,131.77,15.1778]
[1718979412592,6.0676,131.85,131.77,15.1778]
[1718979412799,6.0677,131.85,131.79,6.07]
[1718979413020,15.1629,131.91,131.79,15.1751]
[1718979413182,15.1629,131.91,131.77,100.0]
[1718979413183,6.067,131.86,131.77,115.1779]
[1718979413385,6.0667,131.87,131.77,100.0]
[1718979413589,6.0675,131.85,131.8,6.0697]
[1718979414119,6.0677,131.85,131.79,6.0699]
[1718979414409,6.0673,131.86,131.78,15.1765]
[1718979414610,6.0668,131.87,131.81,6.069]
[1718979414998,6.067,131.86,131.8,6.0695]
[1718979415204,6.067,131.86,131.81,6.0693]
[1718979415639,15.1632,131.9,131.74,100.0]
[1718979415640,6.0694,131.81,131.74,100.0]
[1718979415801,6.0684,131.83,131.77,6.0709]
[1718979416002,6.0682,131.84,131.78,6.0707]
[1718979416214,6.0684,131.83,131.77,6.0709]
[1718979416413,6.0684,131.83,131.74,115.1803]
[1718979416615,6.0681,131.84,131.74,115.1803]
[1718979416822,15.1674,131.87,131.78,6.0706]
[1718979417019,15.1689,131.85,131.74,115.1803]
[1718979417212,6.0682,131.84,131.78,6.0707]
[1718979417609,6.0685,131.83,131.77,6.071]
[1718979418626,6.0685,131.83,131.72,59.3606]
[1718979418627,6.0698,131.8,131.72,145.512]
[1718979418921,6.0698,131.8,131.72,115.1836]
[1718979419127,6.0698,131.8,131.74,6.0724]
[1718979419329,6.3837,131.83,131.75,6.072]
[1718979419330,6.0694,131.81,131.75,6.072]
[1718979419508,6.0698,131.8,131.74,6.0724]
[1718979419835,6.0698,131.8,131.75,6.072]
[1718979420015,6.0698,131.8,131.72,130.3544]
[1718979420016,6.3837,131.83,131.74,15.1813]
[1718979420218,6.0702,131.8,131.74,6.0722]
[1718979420417,6.0702,131.8,131.75,6.072]
[1718979420638,6.0702,131.8,131.72,130.3544]
[1718979421108,6.0702,131.8,131.74,6.0723]
[1718979421309,6.0705,131.79,131.73,6.0728]
[1718979421525,6.0704,131.79,131.73,6.0728]
[1718979421906,15.1733,131.82,131.73,6.0728]
[1718979422110,6.3837,131.83,131.68,30.405567]
[1718979422111,6.0719,131.76,131.68,30.405567]
[1718979422311,15.183,131.73,131.64,1.32185196]
[1718979422615,6.0735,131.72,131.62,15.195]
[1718979422809,6.074,131.71,131.65,6.0765]
[1718979423408,6.0736,131.72,131.66,6.076]
[1718979423605,21.5242,131.74,131.64,100.0]
[1718979423912,30.3375,131.85,131.62,22.91]
[1718979423913,6.0714,131.77,131.71,6.0737]
[1718979424109,6.0717,131.76,131.7,6.0741]
[1718979424314,21.3516,131.78,131.67,100.0]
[1718979424514,6.0718,131.76,131.7,6.074]
[1718979424827,21.3516,131.78,131.67,6.0755]
[1718979424828,6.0732,131.73,131.67,6.0755]
[1718979425010,6.0727,131.74,131.68,6.0752]
[1718979425633,6.0739,131.72,131.64,15.1927]
[1718979425819,15.1781,131.77,131.66,15.1906]
[1718979426015,15.1781,131.77,131.66,0.112691]
[1718979426229,6.073,131.73,131.67,6.0755]
[1718979426601,6.073,131.73,131.68,6.0752]
[1718979426806,6.073,131.73,131.67,6.0756]
[1718979427004,21.5216,131.78,131.66,0.112691]
[1718979427005,6.0739,131.72,131.66,0.112691]
[1718979427206,6.0742,131.71,131.66,0.112691]
[1718979427426,6.0729,131.74,131.66,100.112691]
[1718979427612,36.5294,131.78,131.67,15.3584]
[1718979427824,6.0732,131.73,131.66,0.112691]
[1718979428140,6.0728,131.74,131.68,6.0752]
[1718979428334,6.0728,131.74,131.68,6.075]
[1718979428624,21.3516,131.78,131.66,0.112691]
[1718979428824,6.0721,131.75,131.69,6.0744]
[1718979429017,15.1789,131.77,131.69,6.0744]
[1718979429215,15.1789,131.77,131.66,0.112691]
[1718979429628,6.0718,131.76,131.68,100.0]
[1718979429825,6.1653,131.78,131.7,100.0]
[1718979430129,6.1805,131.82,131.71,0.17]
[1718979430318,21.3537,131.82,131.73,6.0728]
[1718979430519,21.3537,131.82,131.71,0.17]
[1718979430520,6.1805,131.82,131.71,100.0]
[1718979430834,6.1805,131.82,131.69,0.34]
[1718979431055,6.0722,131.75,131.7,6.0742]
[1718979431211,6.0732,131.73,131.67,6.0756]
[1718979431528,10.0,131.8,131.66,0.112691]
[1718979431717,6.0745,131.7,131.66,0.112691]
[1718979431927,15.1837,131.72,131.66,0.112691]
[1718979432235,31.1717,131.74,131.66,0.112691]
[1718979432434,6.0742,131.71,131.66,0.112691]
[1718979432730,15.1836,131.73,131.66,0.112691]
[1718979432933,6.3696,131.7,131.66,0.112691]
[1718979433113,6.0754,131.68,131.66,0.112691]
[1718979433524,6.3696,131.7,131.66,0.112691]
[1718979433525,6.0757,131.67,131.66,0.112691]
[1718979435241,6.3696,131.7,131.57,0.8580225]
[1718979435540,6.0788,131.61,131.57,0.8580225]
[1718979435732,15.1894,131.68,131.57,0.8580225]
[1718979435932,20.0,131.69,131.61,6.0783]
[1718979436113,6.0762,131.67,131.61,6.0785]
[1718979436425,6.0774,131.64,131.58,6.0798]
[1718979436613,6.0774,131.64,131.58,6.0796]
[1718979436813,6.0774,131.64,131.57,0.8580225]
[1718979437033,20.0,131.69,131.57,0.8580225]
[1718979437336,6.0781,131.62,131.57,0.8580225]
[1718979437539,6.0778,131.63,131.57,0.8580225]
[1718979437713,6.0778,131.63,131.57,6.9381225]
[1718979438232,45.34,131.68,131.6,6.0789]
[1718979438432,6.0754,131.68,131.62,6.0776]
[1718979438637,6.3696,131.7,131.57,0.8580225]
[1718979438813,15.1908,131.66,131.57,6.9382225]
[1718979439014,6.3696,131.7,131.57,0.8580225]
[1718979439215,15.194,131.64,131.57,0.8580225]
[1718979439734,15.1954,131.62,131.57,0.8580225]
[1718979439911,6.0791,131.6,131.57,0.8580225]
[1718979440114,6.0795,131.59,131.57,0.8580225]
[1718979440314,15.1954,131.62,131.57,0.8580225]
[1718979440529,6.0789,131.61,131.57,0.8580225]
[1718979440732,6.0786,131.61,131.57,0.8580225]
[1718979440933,6.079,131.6,131.57,0.8580225]
[1718979441139,15.2375,131.65,131.57,0.8580225]
[1718979441310,6.0793,131.6,131.57,0.8580225]
[1718979441927,6.0799,131.58,131.57,0.8580225]
[1718979442309,26.0799,131.58,131.57,0.8580225]
[1718979442642,26.2499,131.58,131.57,0.8580225]
[1718979443017,26.0799,131.58,131.57,0.8580225]
[1718979445117,26.2499,131.58,131.57,0.8580225]
[1718979445320,26.4199,131.58,131.57,0.8580225]
[1718979445633,26.0799,131.58,131.57,0.8580225]
[1718979446318,6.2805,131.6,131.57,0.8580225]
[1718979446319,6.0791,131.6,131.57,0.8580225]
[1718979446527,6.259,131.64,131.57,0.8580225]
[1718979446721,6.0789,131.61,131.57,0.8580225]
[1718979446929,6.259,131.64,131.57,0.8580225]
[1718979447121,6.0789,131.61,131.57,0.8580225]
[1718979447321,21.452,131.64,131.57,0.8580225]
[1718979447544,20.0,131.63,131.57,0.8580225]
[1718979448244,6.6513,131.69,131.57,0.8580225]
[1718979448450,6.077,131.65,131.57,16.0581225]
[1718979448649,6.0775,131.64,131.57,0.8580225]
[1718979448947,6.0765,131.66,131.57,0.8580225]
[1718979449244,6.0771,131.64,131.57,0.8580225]
[1718979449470,15.1918,131.65,131.57,0.8580225]
[1718979449745,6.0739,131.72,131.64,6.0769]
[1718979449957,6.073,131.73,131.64,6.0683]
[1718979450150,6.0736,131.72,131.64,12.145]
[1718979450350,6.0736,131.72,131.65,6.0764]
[1718979450653,6.0725,131.74,131.65,100.0]
[1718979450859,6.0717,131.76,131.69,6.0744]
[1718979451050,37.5263,131.81,131.67,100.0]
[1718979451249,6.0706,131.79,131.72,6.0734]
[1718979451455,6.0704,131.79,131.71,6.0735]
[1718979451762,6.0697,131.81,131.74,6.0724]
[1718979452333,6.0698,131.8,131.74,6.0725]
[1718979452537,6.0688,131.83,131.72,115.1835]
[1718979452734,6.067,131.86,131.79,6.07]
[1718979452938,15.1627,131.91,131.76,15.1785]
[1718979453161,6.0688,131.82,131.76,6.0714]
[1718979453348,15.167,131.87,131.77,6.0709]
[1718979453538,6.068,131.84,131.77,6.0709]
[1718979453948,30.3287,131.89,131.73,100.17]
[1718979453949,15.1688,131.85,131.73,0.17]
[1718979454257,6.0715,131.77,131.71,22.5531]
[1718979454446,30.3371,131.86,131.71,22.5531]
[1718979454447,6.0694,131.81,131.71,122.5531]
[1718979454646,6.069,131.82,131.72,15.1834]
[1718979454840,40.3349,131.94,131.73,100.0]
[1718979455063,10.0,131.94,131.74,20.0]
[1718979455264,6.0667,131.87,131.77,100.0]
[1718979455486,13.95514471,131.93,131.76,0.17]
[1718979455642,13.95514471,131.93,131.79,6.0701]
[1718979455643,6.0675,131.85,131.79,6.0701]
[1718979455944,6.0675,131.85,131.75,0.34]
[1718979455945,6.0675,131.85,131.78,6.0705]
[1718979456146,15.1647,131.89,131.77,100.0]
[1718979456363,6.0661,131.88,131.81,6.069]
[1718979456561,6.0666,131.87,131.81,6.069]
[1718979456965,15.1618,131.92,131.83,6.0683]
[1718979457337,6.0652,131.9,131.83,6.0683]
[1718979457777,20.0,131.91,131.78,0.17]
[1718979457958,6.066,131.89,131.79,100.0]
[1718979458145,6.0652,131.9,131.83,6.0682]
[1718979459370,6.0642,131.92,131.85,6.0674]
[1718979459669,6.0637,131.94,131.87,6.0665]
[1718979459843,6.0637,131.94,131.88,6.0659]
[1718979460045,6.0627,131.96,131.89,6.0654]
[1718979460241,6.3729,131.98,131.87,15.1663]
[1718979460560,6.0635,131.94,131.87,6.0662]